bitfinex/quotes_BTCUSD_20260125
["timestamp","ask_amount","ask_price","bid_price","bid_amount"]
[1769372831605,0.11540732,86437.0,86424.0,0.05411459]
[1769372831814,0.01156898,86438.0,86424.0,0.05411459]
[1769372832023,0.11541781,86437.0,86424.0,0.05411459]
[1769372832238,0.03974543,86441.0,86424.0,0.05411459]
[1769372832456,0.11541751,86440.0,86424.0,0.05411459]
[1769372832673,0.11541751,86439.0,86425.0,1.05119514]
[1769372832879,0.11541751,86438.0,86426.0,0.05411459]
[1769372833258,0.11541751,86438.0,86420.0,0.01157139]
[1769372833259,0.13871666,86455.0,86429.0,1.05119514]
[1769372833383,0.03974543,86453.0,86435.0,0.05411459]
[1769372833580,0.11541052,86452.0,86435.0,0.05411459]
[1769372833792,0.16672319,86451.0,86435.0,0.05411459]
[1769372833990,0.11541052,86450.0,86435.0,0.05411459]
[1769372834189,0.11541052,86449.0,86435.0,0.05411459]
[1769372834395,0.11541052,86448.0,86435.0,0.05411459]
[1769372834635,0.1269783,86447.0,86423.0,1.05119514]
[1769372834791,0.11541052,86446.0,86427.0,1.05119514]
[1769372834998,0.03974543,86455.0,86431.0,0.05411459]
[1769372835218,0.03974543,86455.0,86434.0,1.05119514]
[1769372835219,0.15515137,86454.0,86434.0,1.05119514]
[1769372835399,0.05707056,86452.0,86434.0,1.05119514]
[1769372835595,0.11540594,86451.0,86434.0,1.05119514]
[1769372837688,0.16908811,86451.0,86434.0,1.05119514]
[1769372837909,0.00062413,86450.0,86434.0,1.05119514]
[1769372838145,0.05368217,86451.0,86434.0,1.05219514]
[1769372838363,0.05368217,86457.0,86437.0,0.05311762]
[1769372838580,0.05368217,86457.0,86441.0,0.05311762]
[1769372838762,0.05368217,86457.0,86441.0,1.1738356]
[1769372839451,0.06524861,86457.0,86441.0,1.1738356]
[1769372839857,0.06538546,86457.0,86441.0,1.1738356]
[1769372840082,0.05381902,86457.0,86441.0,1.1738356]
[1769372841958,0.09406445,86457.0,86441.0,1.1738356]
[1769372842627,0.03974543,86456.0,86431.0,0.05311762]
[1769372842831,0.05368217,86455.0,86434.0,1.12071798]
[1769372843034,0.05368217,86455.0,86425.0,0.01157072]
[1769372843035,0.03974543,86452.0,86425.0,1.12071798]
[1769372843247,0.05368217,86449.0,86427.0,0.05311762]
[1769372843454,0.00013685,86457.0,86427.0,0.05311762]
[1769372843455,0.00113685,86457.0,86433.0,0.01156965]
[1769372843666,0.01156537,86465.0,86444.0,1.12071798]
[1769372843895,0.04715235,86465.0,86446.0,0.05311762]
[1769372844118,0.03558698,86464.0,86446.0,0.05311762]
[1769372844736,0.03558698,86464.0,86447.0,0.05311762]
[1769372844948,0.05368217,86467.0,86447.0,0.05311762]
[1769372845178,0.001,86465.0,86450.0,1.12071798]
[1769372845375,0.001,86465.0,86452.0,0.05311762]
[1769372846426,0.01156497,86468.0,86452.0,0.05311762]
[1769372846691,0.04728747,86468.0,86452.0,0.05311762]
[1769372846921,0.01156497,86468.0,86452.0,0.05311762]
[1769372847154,0.0357225,86467.0,86452.0,0.05311762]
[1769372848721,0.001,86468.0,86453.0,1.12071798]
[1769372848946,0.001,86468.0,86453.0,1.1738356]
[1769372849197,0.02715283,86467.0,86453.0,0.05311762]
[1769372849873,0.0001812,86468.0,86455.0,0.05311762]
[1769372850099,0.02733403,86468.0,86446.0,1.12071798]
[1769372850436,0.02733403,86468.0,86449.0,1.12071798]
[1769372850577,0.02733403,86468.0,86450.0,0.05311762]
[1769372850790,0.02815283,86467.0,86450.0,0.05311762]
[1769372851026,0.001,86467.0,86453.0,1.12071798]
[1769372851222,0.0001812,86467.0,86454.0,0.05311762]
[1769372851802,0.0001812,86467.0,86456.0,0.05311762]
[1769372852749,0.00833587,86454.0,86428.0,0.05311762]
[1769372852953,0.0578381,86449.0,86428.0,0.05311762]
[1769372853154,0.01990391,86445.0,86428.0,0.05311762]
[1769372853357,0.01156818,86444.0,86428.0,0.05311762]
[1769372853555,0.01990391,86445.0,86428.0,0.05311762]
[1769372853798,0.00833587,86443.0,86428.0,0.05311762]
[1769372854171,0.00833587,86452.0,86429.0,1.13740238]
[1769372854370,0.00833587,86450.0,86431.0,0.06666048]
[1769372855025,0.00833587,86450.0,86431.0,1.13740238]
[1769372855180,0.00833587,86450.0,86433.0,0.06666048]
[1769372855801,0.00833587,86450.0,86435.0,0.06666048]
[1769372856703,0.00933587,86450.0,86435.0,0.06666048]
[1769372856907,0.001,86450.0,86435.0,1.20406286]
[1769372857106,0.06673428,86451.0,86435.0,1.20406286]
[1769372857728,0.0001419,86454.0,86436.0,0.06666048]
[1769372857940,0.01156604,86460.0,86439.0,0.06666048]
[1769372858145,0.11535249,86459.0,86442.0,1.13740238]
[1769372858352,0.01156604,86460.0,86444.0,0.06666048]
[1769372858532,0.11537725,86459.0,86445.0,0.06666048]
[1769372858734,0.01156604,86460.0,86445.0,0.06666048]
[1769372859064,0.11537711,86459.0,86445.0,0.06666048]
[1769372859266,0.11543404,86458.0,86445.0,0.06666048]
[1769372859501,0.0001812,86461.0,86445.0,0.06666048]
[1769372859704,0.11543264,86460.0,86445.0,0.06666048]
[1769372859885,0.11543264,86459.0,86445.0,0.06666048]
[1769372860103,0.0001812,86461.0,86445.0,0.06666048]
[1769372860308,0.11550439,86460.0,86445.0,0.06666048]
[1769372860524,0.11550439,86459.0,86445.0,0.06666048]
[1769372860729,0.11550439,86458.0,86445.0,0.06666048]
[1769372860937,0.11550439,86457.0,86445.0,0.06666048]
[1769372861140,0.0001812,86461.0,86445.0,0.06666048]
[1769372861388,0.11552103,86460.0,86445.0,0.06666048]
[1769372861575,0.04542689,86458.0,86439.0,0.0001419]
[1769372861795,0.0001812,86461.0,86439.0,0.0001419]
[1769372861796,0.83358757,86450.0,86439.0,0.0001419]
[1769372862009,0.04542689,86446.0,86439.0,0.0001419]
[1769372862220,0.04542689,86447.0,86439.0,0.0001419]
[1769372862638,0.05096542,86449.0,86439.0,0.0001419]
[1769372862861,0.01156697,86453.0,86439.0,0.0001419]
[1769372863077,0.01156604,86460.0,86441.0,1.13740238]
[1769372863302,0.11554422,86457.0,86442.0,0.06666048]
[1769372863518,0.11554422,86456.0,86443.0,1.13740238]
[1769372863726,0.0001812,86461.0,86444.0,0.06666048]
[1769372863959,0.11555832,86460.0,86444.0,0.06666048]
[1769372864170,0.11555832,86459.0,86446.0,0.06666048]
[1769372864372,0.0001812,86461.0,86447.0,1.13740238]
[1769372864373,0.11555832,86458.0,86447.0,1.13740238]
[1769372864554,0.11555832,86457.0,86448.0,0.06666048]
[1769372864747,0.0001812,86461.0,86448.0,0.06666048]
[1769372864965,0.115567,86460.0,86448.0,0.06666048]
[1769372865117,0.115567,86459.0,86448.0,0.06666048]
[1769372865334,0.0001812,86461.0,86451.0,1.13740238]
[1769372865537,0.0001812,86461.0,86454.0,0.06666048]
[1769372868199,0.10440152,86476.0,86454.0,0.06666048]
[1769372868391,0.00045427,86475.0,86454.0,0.06666048]
[1769372868594,0.00045427,86474.0,86454.0,0.06666048]
[1769372869654,0.001,86476.0,86457.0,1.13740238]
[1769372869861,0.001,86476.0,86460.0,0.06666048]
[1769372870064,0.0004,86480.0,86464.0,0.06666048]
[1769372870468,0.01241763,86480.0,86464.0,0.06666048]
[1769372870697,0.0004,86480.0,86465.0,1.13740238]
[1769372870845,0.01196336,86480.0,86465.0,1.20406286]
[1769372871048,0.01196336,86480.0,86466.0,0.06666048]
[1769372871255,0.01196336,86480.0,86468.0,0.06666048]
[1769372871256,0.0004,86480.0,86468.0,0.06666048]
[1769372871454,0.0004,86480.0,86471.0,1.13740238]
[1769372871630,0.0004,86480.0,86462.0,0.01156577]
[1769372871631,0.0004128,86486.0,86474.0,0.06440674]
[1769372871831,0.0004128,86486.0,86476.0,0.06666048]
[1769372871832,0.00055476,86486.0,86476.0,0.06666048]
[1769372872021,0.00055476,86486.0,86476.0,0.05683854]
[1769372872459,0.00055476,86486.0,86476.0,0.05464789]
[1769372873044,0.00055476,86486.0,86476.0,1.13740238]
[1769372873226,0.00055476,86486.0,86477.0,0.06666048]
[1769372873460,0.00055476,86486.0,86478.0,0.06666048]
[1769372874381,0.00055476,86486.0,86472.0,1.13740238]
[1769372874583,0.00055476,86486.0,86473.0,0.06666048]
[1769372875411,0.00055476,86486.0,86474.0,1.13740238]
[1769372875608,0.00055476,86486.0,86475.0,0.06666048]
[1769372876048,0.00055476,86486.0,86476.0,1.20406286]
[1769372877543,0.00055476,86486.0,86477.0,0.06666048]
[1769372877700,0.00055476,86486.0,86479.0,0.06666048]
[1769372878507,0.00055476,86486.0,86479.0,0.06650238]
[1769372879131,0.00055476,86486.0,86479.0,0.06618618]
[1769372880178,0.00055476,86486.0,86474.0,0.06666048]
[1769372880394,0.00055476,86486.0,86475.0,1.13740238]
[1769372880624,0.00055476,86486.0,86476.0,0.06666048]
[1769372881078,0.00155476,86486.0,86476.0,0.06666048]
[1769372881696,0.00055476,86486.0,86476.0,0.06666048]
[1769372882156,0.01,86476.0,86453.0,1.14896935]
[1769372882368,0.01,86476.0,86458.0,1.13740238]
[1769372882578,0.06673428,86482.0,86462.0,1.13740238]
[1769372882780,0.06673428,86482.0,86460.0,0.06666048]
[1769372882995,0.06673428,86482.0,86463.0,1.12346176]
[1769372883245,0.06673428,86482.0,86464.0,1.12346176]
[1769372883487,0.06673428,86482.0,86465.0,0.07707662]
[1769372884099,0.12043868,86482.0,86465.0,0.07707662]
[1769372884306,0.0537044,86481.0,86465.0,0.07707662]
[1769372884523,0.0537044,86481.0,86447.0,0.01156778]
[1769372884740,0.0537044,86477.0,86457.0,1.12346176]
[1769372884974,0.0537044,86477.0,86458.0,0.07707662]
[1769372885211,0.0537044,86477.0,86459.0,1.20053838]
[1769372885421,0.08448011,86473.0,86453.0,0.07707662]
[1769372885619,0.0537044,86472.0,86453.0,0.07707662]
[1769372885829,0.0537044,86472.0,86455.0,1.12346176]
[1769372886075,0.0537044,86472.0,86456.0,0.07707662]
[1769372886287,0.08448011,86468.0,86443.0,1.12346176]
[1769372886501,0.0537044,86465.0,86444.0,0.07798516]
[1769372886698,0.0537044,86463.0,86444.0,0.07798516]
[1769372886917,0.0537044,86463.0,86445.0,1.12346176]
[1769372887160,0.0537044,86461.0,86458.0,0.001]
[1769372887370,0.08448011,86462.0,86458.0,0.001]
[1769372887613,0.08448011,86462.0,86445.0,1.20053838]
[1769372887614,0.08448011,86462.0,86446.0,0.07707662]
[1769372887816,0.0537044,86465.0,86446.0,0.07707662]
[1769372888033,0.0537044,86465.0,86446.0,1.12346176]
[1769372888234,0.0537044,86465.0,86447.0,0.07707662]
[1769372888443,0.06526977,86465.0,86447.0,0.07707662]
[1769372888775,0.0115655,86464.0,86447.0,0.07707662]
[1769372888985,0.01156617,86459.0,86437.0,1.12346176]
[1769372889194,0.01156617,86459.0,86432.0,0.01156978]
[1769372889195,0.06527057,86459.0,86440.0,0.07707662]
[1769372889400,0.06527057,86459.0,86442.0,0.07707662]
[1769372889612,0.0115663,86458.0,86442.0,0.07707662]
[1769372889820,0.01689615,86451.0,86432.0,1.12346176]
[1769372890037,0.01689615,86451.0,86435.0,0.07707662]
[1769372890482,0.01156684,86454.0,86436.0,0.07707662]
[1769372890898,0.02846299,86454.0,86436.0,0.07608864]
[1769372891126,0.01689615,86454.0,86436.0,0.07608864]
[1769372891330,0.01689615,86454.0,86437.0,0.00090729]
[1769372891536,0.01689615,86454.0,86437.0,0.07798391]
[1769372892831,0.02846299,86454.0,86437.0,0.07798391]
[1769372893042,0.02846299,86454.0,86437.0,0.07707662]
[1769372893504,0.02846299,86454.0,86437.0,0.07807662]
[1769372893896,0.02846299,86454.0,86437.0,0.07707662]
[1769372894304,0.01689615,86454.0,86437.0,0.07707662]
[1769372895363,0.01156697,86453.0,86437.0,0.07707662]
[1769372895579,0.01156684,86454.0,86437.0,0.07707662]
[1769372895807,0.01156617,86459.0,86440.0,1.13866494]
[1769372896020,0.01156644,86457.0,86443.0,0.08683198]
[1769372896225,0.01156617,86459.0,86443.0,0.08683198]
[1769372896642,0.01156617,86459.0,86442.0,1.13866494]
[1769372896643,0.08183254,86471.0,86445.0,0.08683198]
[1769372896853,0.09227373,86472.0,86448.0,1.13866494]
[1769372896854,0.11535885,86470.0,86448.0,1.13866494]
[1769372897084,0.01156497,86468.0,86452.0,1.13866494]
[1769372897389,0.11535885,86467.0,86453.0,1.21729421]
[1769372897623,0.04628,86472.0,86443.0,0.01156831]
[1769372897624,0.10123289,86473.0,86456.0,1.08251702]
[1769372897817,0.10123289,86473.0,86457.0,1.22549692]
[1769372898142,0.01156443,86472.0,86457.0,1.22549692]
[1769372898943,0.15697578,86473.0,86457.0,0.08683198]
[1769372899973,0.09227373,86488.0,86457.0,0.08683198]
[1769372899974,0.09227373,86488.0,86457.0,1.22549692]
[1769372900210,0.04628,86480.0,86449.0,0.08683198]
[1769372900404,0.08183254,86478.0,86453.0,0.08683198]
[1769372900581,0.001,86473.0,86454.0,1.22549692]
[1769372901109,0.08183254,86474.0,86454.0,1.22549692]
[1769372901302,0.15697578,86474.0,86454.0,1.22549692]
[1769372902040,0.15697578,86474.0,86455.0,0.08683198]
[1769372902187,0.07514324,86473.0,86456.0,1.22549692]
[1769372903198,0.07614324,86473.0,86456.0,1.22549692]
[1769372904181,0.07614324,86473.0,86444.0,0.08683198]
[1769372904182,0.07514324,86469.0,86444.0,0.08683198]
[1769372904391,0.08183254,86466.0,86444.0,0.08683198]
[1769372904596,0.08183254,86462.0,86444.0,0.08683198]
[1769372904796,0.08183254,86460.0,86443.0,1.13866494]
[1769372904981,0.08183254,86460.0,86443.0,1.22549692]
[1769372905991,0.08183254,86460.0,86444.0,0.08683198]
[1769372906245,0.08183254,86460.0,86445.0,1.13866494]
[1769372906452,0.07514324,86459.0,86438.0,1.13866494]
[1769372906600,0.08262397,86455.0,86443.0,0.001]
[1769372906808,0.08183254,86454.0,86443.0,0.001]
[1769372907036,0.01156697,86453.0,86443.0,0.001]
[1769372907238,0.08183254,86454.0,86436.0,1.22549692]
[1769372907440,0.08262397,86453.0,86436.0,1.22549692]
[1769372907886,0.08183254,86454.0,86436.0,1.13866494]
[1769372908053,0.08183254,86454.0,86445.0,0.001]
[1769372909142,0.08183254,86454.0,86437.0,1.22549692]
[1769372910017,0.08183254,86454.0,86437.0,0.08683198]
[1769372910018,0.08262397,86453.0,86437.0,0.08683198]
[1769372910222,0.08183254,86454.0,86438.0,1.13866494]
[1769372910426,0.01156697,86453.0,86438.0,1.13866494]
[1769372910981,0.01156724,86451.0,86437.0,0.08683198]
[1769372911185,0.01156697,86453.0,86437.0,0.08683198]
[1769372911524,0.16445651,86454.0,86437.0,0.08683198]
[1769372911919,0.0001245,86455.0,86437.0,1.13866494]
[1769372912125,0.0001245,86455.0,86440.0,0.08683198]
[1769372912334,0.0001245,86455.0,86443.0,1.13866494]
[1769372912601,0.0001245,86455.0,86444.0,0.02892612]
[1769372912771,0.0001245,86455.0,86444.0,0.02633993]
[1769372912974,0.0001245,86455.0,86444.0,1.1096852]
[1769372913178,0.0001245,86455.0,86442.0,1.1380604]
[1769372913386,0.0001245,86455.0,86444.0,1.1380604]
[1769372913593,0.0001245,86455.0,86444.0,1.23071978]
[1769372918787,0.0001245,86455.0,86444.0,0.09265938]
[1769372919210,0.0001245,86455.0,86445.0,1.1380604]
[1769372919418,0.0001245,86455.0,86447.0,1.1380604]
[1769372921472,0.0001245,86455.0,86447.0,1.23071978]
[1769372922030,0.0001245,86455.0,86449.0,1.1380604]
[1769372922251,0.0001245,86455.0,86452.0,0.09265938]
[1769372922436,0.0001245,86455.0,86453.0,1.1380604]
[1769372923464,0.011823,86470.0,86448.0,0.09265938]
[1769372923701,0.01156497,86468.0,86453.0,0.09265938]
[1769372923872,0.11560184,86467.0,86454.0,1.1380604]
[1769372924036,0.06964657,86470.0,86454.0,1.1380604]
[1769372924037,0.11560184,86466.0,86454.0,1.1380604]
[1769372924237,0.11560184,86465.0,86454.0,1.1380604]
[1769372924478,0.11560184,86464.0,86454.0,1.1380604]
[1769372924696,0.11560184,86463.0,86454.0,1.23071978]
[1769372924888,0.0002583,86470.0,86454.0,1.23071978]
[1769372925230,0.11560274,86469.0,86454.0,1.23071978]
[1769372925410,0.11560274,86468.0,86454.0,1.23071978]
[1769372925622,0.11560274,86467.0,86454.0,1.23071978]
[1769372925764,0.11560274,86466.0,86454.0,1.23071978]
[1769372925966,0.11560274,86465.0,86454.0,1.23071978]
[1769372926181,0.11560274,86464.0,86454.0,1.23071978]
[1769372926378,0.0002583,86470.0,86454.0,1.23071978]
[1769372926582,0.1156037,86469.0,86454.0,1.23071978]
[1769372926789,0.1156037,86468.0,86454.0,1.23071978]
[1769372927005,0.1156037,86467.0,86454.0,1.23071978]
[1769372927206,0.1156037,86466.0,86454.0,1.23071978]
[1769372927447,0.1156037,86465.0,86454.0,1.23071978]
[1769372927617,0.0002583,86470.0,86454.0,1.23071978]
[1769372927829,0.11560049,86469.0,86454.0,1.23071978]
[1769372928054,0.11560049,86468.0,86454.0,1.23071978]
[1769372928211,0.11560049,86467.0,86454.0,1.23071978]
[1769372928392,0.11560049,86466.0,86454.0,1.23071978]
[1769372928596,0.11560049,86465.0,86454.0,1.23071978]
[1769372928801,0.0002583,86470.0,86454.0,1.23071978]
[1769372929039,0.0002583,86470.0,86453.0,0.09265938]
[1769372929230,0.0002583,86470.0,86456.0,1.1380604]
[1769372929451,0.0002583,86470.0,86456.0,1.23071978]
[1769372930358,0.0002583,86470.0,86458.0,1.1380604]
[1769372931468,0.00036776,86470.0,86458.0,1.1380604]
[1769372931699,0.00036776,86470.0,86457.0,0.09265938]
[1769372931902,0.00036776,86470.0,86458.0,0.001]
[1769372932109,0.00036776,86470.0,86459.0,1.1380604]
[1769372932320,0.00036776,86470.0,86462.0,0.09265938]
[1769372932524,0.00036776,86470.0,86463.0,1.1380604]
[1769372937522,0.00036776,86470.0,86460.0,0.35076225]
[1769372938011,0.00036776,86470.0,86457.0,1.23071978]
[1769372938514,0.00036776,86470.0,86458.0,1.13921703]
[1769372938732,0.00036776,86470.0,86458.0,1.1380604]
[1769372939166,0.00036776,86470.0,86460.0,0.001]
[1769372939571,0.00036776,86470.0,86460.0,0.00023233]
[1769372939774,0.13871666,86490.0,86460.0,0.00023233]
[1769372939775,0.09227373,86488.0,86461.0,1.13944932]
[1769372939976,0.09188872,86478.0,86461.0,1.13816986]
[1769372940181,0.35076225,86480.0,86461.0,1.13816986]
[1769372940182,0.13578892,86477.0,86461.0,0.00010946]
[1769372940393,0.01156443,86472.0,86461.0,0.00010946]
[1769372940606,0.01156457,86471.0,86461.0,0.00010946]
[1769372940809,0.01156457,86471.0,86458.0,0.0108494]
[1769372940810,0.09188872,86468.0,86458.0,0.001]
[1769372941014,0.09188872,86466.0,86450.0,0.35076225]
[1769372941238,0.13578892,86465.0,86450.0,0.35076225]
[1769372941434,0.09188872,86464.0,86450.0,1.48882265]
[1769372941663,0.00010942,86468.0,86451.0,1.23071978]
[1769372942672,0.00010942,86468.0,86453.0,0.01156697]
[1769372942880,0.00010942,86468.0,86454.0,1.1380604]
[1769372943519,0.00010942,86468.0,86459.0,1.13983705]
[1769372943737,0.04628,86485.0,86459.0,1.13983705]
[1769372943882,0.11551241,86484.0,86459.0,1.25341937]
[1769372944081,0.03264663,86481.0,86459.0,1.25341937]
[1769372944316,0.12263327,86478.0,86459.0,1.25341937]
[1769372944541,0.03264663,86477.0,86459.0,1.25341937]
[1769372944797,0.04421039,86477.0,86459.0,1.25341937]
[1769372945006,0.03264663,86477.0,86459.0,1.25341937]
[1769372945164,0.03264663,86477.0,86459.0,1.13994647]
[1769372945365,0.12263327,86478.0,86462.0,0.1134729]
[1769372945904,0.12263327,86478.0,86462.0,1.25330995]
[1769372946730,0.1552799,86478.0,86462.0,1.25330995]
[1769372947526,0.1562799,86478.0,86462.0,1.25330995]
[1769372948081,0.1552799,86478.0,86462.0,1.25330995]
[1769372948411,0.1562799,86478.0,86462.0,1.25330995]
[1769372948616,0.14471627,86478.0,86462.0,1.25330995]
[1769372948839,0.14371627,86478.0,86462.0,1.25330995]
[1769372949263,0.1562799,86478.0,86462.0,1.25330995]
[1769372949515,0.0115635,86479.0,86462.0,1.13983705]
[1769372949723,0.01156363,86478.0,86463.0,0.1134729]
[1769372950168,0.00989054,86463.0,86459.0,0.00010942]
[1769372950373,0.00032647,86467.0,86459.0,0.00010942]
[1769372952868,0.00032647,86467.0,86451.0,0.1134729]
[1769372955139,0.00032647,86467.0,86451.0,0.1144729]
[1769372958071,0.00032647,86467.0,86451.0,0.1134729]
[1769372958293,0.11943679,86466.0,86445.0,1.25806836]
[1769372958494,0.00032647,86464.0,86451.0,0.001]
[1769372959672,0.00032647,86464.0,86450.0,0.11823131]
[1769372960093,0.00032647,86464.0,86450.0,0.46899356]
[1769372960300,0.00032647,86469.0,86451.0,0.12037951]
[1769372960499,0.11569037,86468.0,86451.0,0.12037951]
[1769372960755,0.11569037,86467.0,86451.0,0.11937951]
[1769372960978,0.11569037,86466.0,86451.0,0.11937951]
[1769372961137,0.11569037,86465.0,86453.0,0.01156697]
[1769372961332,0.00032647,86468.0,86453.0,0.01156697]
[1769372961619,0.00032647,86468.0,86455.0,0.01156671]
[1769372961620,0.11568785,86467.0,86455.0,0.01156671]
[1769372961823,0.11568785,86466.0,86455.0,0.01156671]
[1769372962025,0.00032647,86468.0,86455.0,0.01156671]
[1769372962225,0.11568645,86467.0,86456.0,0.01156657]
[1769372962426,0.11568645,86466.0,86456.0,0.06939923]
[1769372962622,0.00032647,86468.0,86457.0,0.01156644]
[1769372962836,0.11568611,86467.0,86457.0,0.01156644]
[1769372963039,0.11568611,86466.0,86457.0,0.01156644]
[1769372963269,0.12083821,86470.0,86457.0,0.01156644]
[1769372963481,0.09205907,86469.0,86464.0,0.0115655]
[1769372963709,0.00014193,86469.0,86464.0,0.11823131]
[1769372964115,0.00014193,86469.0,86466.0,0.11823131]
[1769372965143,0.00014193,86469.0,86466.0,0.12979654]
[1769372965470,3.247e-05,86469.0,86468.0,1.28320057]
[1769372965687,3.247e-05,86469.0,86468.0,0.11823131]
[1769372967676,3.247e-05,86469.0,86468.0,1.34102543]
[1769372970563,3.247e-05,86469.0,86468.0,1.34202543]
[1769372971988,3.247e-05,86469.0,86468.0,1.34102543]
[1769372972395,3.247e-05,86469.0,86468.0,1.51970543]
[1769372972796,3.247e-05,86469.0,86468.0,1.51870543]
[1769372973159,3.247e-05,86469.0,86468.0,1.51970543]
[1769372973580,3.247e-05,86469.0,86468.0,1.51870543]
[1769372973985,3.247e-05,86469.0,86468.0,1.51970543]
[1769372975020,3.247e-05,86469.0,86468.0,1.51870543]
[1769372975731,3.247e-05,86469.0,86468.0,1.51970543]
[1769372976085,3.247e-05,86469.0,86468.0,1.51870543]
[1769372976489,3.247e-05,86469.0,86468.0,1.51970543]
[1769372977256,3.247e-05,86469.0,86468.0,1.51870543]
[1769372977674,0.0002121,86488.0,86487.0,0.05781215]
[1769372977881,0.00031604,86488.0,86487.0,0.04781215]
[1769372978933,0.0004,86492.0,86489.0,0.01156216]
[1769372979147,0.00087303,86492.0,86489.0,0.06937278]
[1769372979572,0.0087579,86492.0,86489.0,0.06937278]
[1769372980590,0.00087303,86492.0,86489.0,0.01156216]
[1769372980777,0.00087303,86492.0,86489.0,0.06937283]
[1769372980909,0.00087303,86492.0,86489.0,0.01156216]
[1769372981327,0.00087303,86492.0,86488.0,0.01156229]
[1769372981528,0.00087303,86492.0,86489.0,0.01156216]
[1769372982186,0.00087303,86492.0,86486.0,0.01156256]
[1769372982401,0.00087303,86492.0,86488.0,0.001]
[1769372983029,0.0087579,86492.0,86485.0,0.01156269]
[1769372983194,0.0087579,86492.0,86488.0,0.01156229]
[1769372983412,0.0087579,86492.0,86487.0,0.06937415]
[1769372983782,0.0087579,86492.0,86488.0,0.05781148]
[1769372983982,0.0087579,86492.0,86489.0,0.01156216]
[1769372984176,0.0087579,86492.0,86488.0,0.01156229]
[1769372984379,0.0087579,86492.0,86486.0,0.001]
[1769372984557,0.0087579,86492.0,86486.0,0.01156256]
[1769372984773,0.0087579,86492.0,86486.0,0.01140499]
[1769372984901,0.00087303,86492.0,86486.0,0.01156256]
[1769372985102,0.00087303,86492.0,86487.0,0.01156243]
[1769372985532,0.00087303,86492.0,86486.0,0.01156256]
[1769372985730,0.00087303,86492.0,86487.0,0.01156243]
[1769372985933,0.00087303,86492.0,86488.0,0.01156229]
[1769372986349,0.00087303,86492.0,86486.0,0.01156256]
[1769372986561,0.0087579,86492.0,86487.0,0.001]
[1769372986749,0.0087579,86492.0,86487.0,0.01256243]
[1769372987160,0.0087579,86492.0,86487.0,0.001]
[1769372987611,0.0087579,86492.0,86481.0,0.01271955]
[1769372987612,0.00787497,86488.0,86481.0,0.17764]
[1769372987874,0.00087303,86492.0,86481.0,0.17764]
[1769372987875,0.09416339,86486.0,86481.0,0.17764]
[1769372988075,0.00787497,86485.0,86481.0,0.17764]
[1769372988279,0.09416339,86486.0,86481.0,0.18920323]
[1769372988493,0.00787497,86485.0,86481.0,0.18920323]
[1769372988696,0.00787497,86485.0,86482.0,0.01156309]
[1769372989967,0.00087303,86492.0,86487.0,0.01156243]
[1769372990178,0.00087303,86492.0,86485.0,0.01943766]
[1769372990405,0.00087303,86492.0,86489.0,0.01156216]
[1769372990989,0.00087303,86492.0,86481.0,0.17764]
[1769372990990,7.875e-05,86491.0,86481.0,0.17764]
[1769372991224,0.09447446,86491.0,86481.0,0.17764]
[1769372991391,0.00087303,86492.0,86476.0,0.23127679]
[1769372991392,0.09447446,86490.0,86482.0,0.001]
[1769372991542,0.00787419,86489.0,86482.0,0.001]
[1769372991744,0.00787419,86489.0,86479.0,0.0115635]
[1769372991953,0.09447446,86490.0,86480.0,0.05781638]
[1769372992165,0.10234865,86490.0,86482.0,0.01256309]
[1769372992566,0.00087303,86492.0,86483.0,0.01156296]
[1769372992775,0.00087303,86492.0,86484.0,0.01156283]
[1769372993036,0.00787419,86491.0,86483.0,0.01156296]
[1769372994245,0.00087303,86492.0,86487.0,0.01156243]
[1769372994464,0.00087303,86492.0,86485.0,0.01156269]
[1769372994994,0.00087303,86492.0,86486.0,0.01156256]
[1769372995146,0.00087303,86492.0,86487.0,0.01156243]
[1769372995312,0.00087303,86492.0,86489.0,0.1494683]
[1769372995519,0.00087303,86492.0,86489.0,0.20727887]
[1769372995716,0.00087303,86492.0,86489.0,0.1494683]
[1769372996373,0.00087303,86492.0,86489.0,0.20727892]
[1769372996576,0.00087303,86492.0,86491.0,0.05780948]
[1769372996917,0.00087303,86492.0,86489.0,0.1494683]
[1769372997546,1e-08,86492.0,86490.0,0.0578095]
[1769372997746,1e-08,86492.0,86489.0,0.1494683]
[1769372998043,8.079e-05,86507.0,86491.0,0.01156189]
[1769372998240,0.11553981,86506.0,86493.0,0.01156162]
[1769372998466,0.11553981,86505.0,86493.0,0.01140406]
[1769372998790,0.11565637,86504.0,86494.0,0.01156149]
[1769372998946,8.079e-05,86504.0,86494.0,0.01156149]
[1769372999355,0.11561116,86503.0,86493.0,0.01156162]
[1769372999543,8.079e-05,86504.0,86493.0,0.01156162]
[1769372999743,0.11561119,86503.0,86494.0,0.01156149]
[1769372999969,8.079e-05,86504.0,86491.0,0.001]
[1769373000181,0.11561097,86503.0,86491.0,0.001]
[1769373000370,8.079e-05,86502.0,86491.0,0.001]
[1769373000574,8.079e-05,86507.0,86489.0,0.05781066]
[1769373000847,0.11563978,86506.0,86499.0,0.01156082]
[1769373001064,0.00800195,86512.0,86499.0,0.01156082]
[1769373001065,0.35824472,86510.0,86499.0,0.00047303]
[1769373001266,0.00968488,86499.0,86496.0,0.01156122]
[1769373001439,0.01015791,86499.0,86496.0,0.01156122]
[1769373001584,0.00047303,86499.0,86496.0,0.1664885]
[1769373001805,0.00047303,86499.0,86497.0,0.15492728]
[1769373002212,0.00047303,86499.0,86495.0,0.01156136]
[1769373003289,0.00047303,86499.0,86494.0,0.01156149]
[1769373003654,0.00047303,86499.0,86493.0,0.18920162]
[1769373003655,0.00764192,86498.0,86493.0,0.17764]
[1769373004453,0.00764192,86498.0,86494.0,0.001]
[1769373004674,0.00047303,86499.0,86494.0,0.001]
[1769373005022,0.00047303,86499.0,86493.0,0.17764]
[1769373005230,0.00047303,86499.0,86493.0,0.18920162]
[1769373005427,0.00047303,86499.0,86493.0,0.17764]
[1769373005789,0.00047303,86499.0,86493.0,0.18920162]
[1769373006199,0.00047303,86499.0,86495.0,0.01156136]
[1769373006408,0.00047303,86499.0,86493.0,0.18920162]
[1769373006737,0.00047303,86499.0,86492.0,0.17023331]
[1769373007097,0.00047303,86499.0,86493.0,0.01156162]
[1769373007307,0.00047303,86499.0,86492.0,0.33631155]
[1769373007509,0.00047303,86499.0,86493.0,0.01256162]
[1769373007720,0.00047303,86499.0,86494.0,0.01156149]
[1769373008161,0.00047303,86499.0,86493.0,0.01156162]
[1769373008388,0.00047303,86499.0,86494.0,0.01156149]
[1769373008599,0.00047303,86499.0,86493.0,0.001]
[1769373008805,0.00047303,86499.0,86492.0,0.33387331]
[1769373009008,0.00047303,86499.0,86493.0,0.01156162]
[1769373009215,0.00047303,86499.0,86492.0,0.33387331]
[1769373009874,0.00047303,86499.0,86493.0,0.01156162]
[1769373011529,0.00047303,86499.0,86494.0,0.01156149]
[1769373012196,0.00811495,86499.0,86492.0,0.17764]
[1769373013002,0.00047303,86499.0,86492.0,0.17764]
[1769373014144,0.00047303,86499.0,86494.0,0.001]
[1769373014573,0.00047303,86499.0,86492.0,0.18920176]
[1769373015171,0.00047303,86499.0,86493.0,0.01156162]